bitfinex-derivatives/quotes_SOLF0:USTF0_20250714
["timestamp","ask_amount","ask_price","bid_price","bid_amount"]
[1752486566246,5.9534,167.93,167.9,3.10251781]
[1752486566440,0.03867062,167.91,167.86,5.21003208]
[1752486566748,0.03867062,167.91,167.83,5.21003208]
[1752486566948,0.03867062,167.91,167.84,2.96594993]
[1752486567243,5.21003208,167.94,167.85,2.96594993]
[1752486567449,0.04091667,167.89,167.86,2.96594993]
[1752486567748,0.04091667,167.89,167.87,2.96594993]
[1752486567949,0.04091667,167.89,167.88,2.96594993]
[1752486568449,0.04091667,167.89,167.83,5.21003208]
[1752486569041,0.04091667,167.89,167.85,5.21003208]
[1752486569449,515.26,167.95,167.88,5.9548]
[1752486569650,0.03911317,167.89,167.88,5.9548]
[1752486569945,515.26,167.95,167.88,5.9548]
[1752486570248,0.04272275,167.9,167.88,5.9548]
[1752486570553,0.04272275,167.9,167.89,5.9548]
[1752486570947,5.9533,167.94,167.89,5.9548]
[1752486571146,0.03936226,167.91,167.89,5.9548]
[1752486571352,0.03936226,167.91,167.88,5.9551]
[1752486571652,0.03936226,167.91,167.86,3.12197388]
[1752486571953,518.38197388,167.95,167.87,5.9554]
[1752486572150,3.12197388,167.93,167.87,5.9554]
[1752486572351,0.04494876,167.9,167.87,5.9554]
[1752486572752,0.04494876,167.9,167.88,5.9552]
[1752486573851,0.04494876,167.9,167.87,5.9554]
[1752486574553,0.04494876,167.9,167.83,3.12197388]
[1752486574954,5.955,167.89,167.85,5.956]
[1752486575155,0.04184069,167.88,167.85,5.956]
[1752486577157,0.04184069,167.88,167.87,5.9555]
[1752486577564,0.04184069,167.88,167.86,5.9557]
[1752486578159,0.04184069,167.88,167.87,5.9555]
[1752486578648,0.04184069,167.88,167.87,9.1295856]
[1752486581252,0.04184069,167.88,167.87,9.12735367]
[1752486582958,515.26,167.95,167.91,5.9539]
[1752486583153,515.26,167.95,167.88,3.12197388]
[1752486583354,515.26,167.95,167.89,3.17125526]
[1752486583556,515.26,167.95,167.9,3.17125526]
[1752486583751,515.26,167.95,167.88,3.12197388]
[1752486583948,515.26,167.95,167.89,3.17205805]
[1752486584150,515.26,167.95,167.9,3.21303519]
[1752486584356,515.26,167.95,167.91,3.17205805]
[1752486584560,515.26,167.95,167.9,0.04097714]
[1752486584758,3.12197388,167.92,167.78,11.9174]
[1752486585061,5.9554,167.88,167.81,3.12197388]
[1752486585261,5.9554,167.88,167.82,3.17297916]
[1752486585459,5.9554,167.88,167.83,3.17297916]
[1752486585656,5.9554,167.88,167.84,3.17297916]
[1752486585858,5.9549,167.89,167.85,3.17297916]
[1752486586059,0.04134684,167.88,167.86,3.17297916]
[1752486586354,0.04134684,167.88,167.87,3.17297916]
[1752486586760,0.04134684,167.88,167.87,6.29495304]
[1752486587155,0.04134684,167.88,167.87,12.25045304]
[1752486588562,515.26,167.95,167.91,5.9539]
[1752486588864,515.26,167.95,167.92,3.17297916]
[1752486589064,5.9534,167.93,167.87,3.12197388]
[1752486589256,5.9534,167.93,167.88,3.17740759]
[1752486589457,5.9534,167.93,167.89,3.17740759]
[1752486589658,5.9533,167.94,167.9,9.13180759]
[1752486589865,518.38197388,167.95,167.91,3.17740759]
[1752486590057,518.38197388,167.95,167.92,3.17740759]
[1752486590260,3.12197388,167.93,167.85,3.12197388]
[1752486590563,3.12197388,167.91,167.86,3.18235253]
[1752486590757,3.12197388,167.91,167.87,3.18235253]
[1752486590758,5.9549,167.89,167.87,3.18235253]
[1752486590962,5.9549,167.89,167.88,3.18235253]
[1752486591163,3.12197388,167.91,167.88,3.18235253]
[1752486591369,3.12197388,167.91,167.89,3.18235253]
[1752486591557,9.07607388,167.91,167.9,3.18235253]
[1752486592562,5.9541,167.91,167.9,3.18235253]
[1752486592957,5.9551,167.89,167.86,0.0397742]
[1752486593158,5.9551,167.89,167.87,3.19014368]
[1752486593362,5.9551,167.89,167.88,3.19014368]
[1752486595673,5.9551,167.89,167.88,1.18959922]
[1752486596772,5.9551,167.89,167.88,9.922e-05]
[1752486597072,5.9551,167.89,167.76,514.68]
[1752486597073,10.9137034,167.89,167.77,3.12197388]
[1752486597276,3.12197388,167.84,167.77,3.12197388]
[1752486597478,9.07877388,167.84,167.8,5.9578]
[1752486597679,9.07877388,167.84,167.72,4.92055121]
[1752486597680,3.12197388,167.84,167.75,3.12197388]
[1752486598178,0.04097112,167.81,167.75,3.12197388]
[1752486598379,0.04097112,167.81,167.77,3.12197388]
[1752486598782,5.957,167.83,167.75,3.12197388]
[1752486599073,0.04422552,167.81,167.74,3.12686414]
[1752486600177,0.04422552,167.81,167.71,4.92055121]
[1752486600476,3.12686414,167.78,167.68,519.64055121]
[1752486600675,3.16816509,167.78,167.7,3.12686414]
[1752486600870,9.12706509,167.78,167.7,3.12686414]
[1752486601180,9.12866099,167.78,167.7,3.12846004]
[1752486601381,0.04130095,167.78,167.7,3.12846004]
[1752486601880,6.00010095,167.78,167.75,5.9598]
[1752486602080,6.00010095,167.78,167.7,3.12846004]
[1752486602583,0.04130095,167.78,167.7,3.12846004]
[1752486602879,0.04130095,167.78,167.74,3.12846004]
[1752486603074,0.04130095,167.78,167.76,5.9594]
[1752486603273,0.04130095,167.78,167.72,3.12846004]
[1752486604275,0.04130095,167.78,167.76,5.9592]
[1752486604476,0.04130095,167.78,167.72,3.12846004]
[1752486604982,0.04130095,167.78,167.77,5.9591]
[1752486606270,0.04130095,167.78,167.72,3.12846004]
[1752486606877,3.12846004,167.77,167.7,3.12846004]
[1752486607477,5.9595,167.76,167.72,5.9608]
[1752486607681,3.12846004,167.77,167.7,3.12846004]
[1752486608076,9.08766004,167.77,167.72,5.9608]
[1752486608378,3.12846004,167.75,167.68,3.12846004]
[1752486608584,9.08826004,167.75,167.71,5.9611]
[1752486608781,3.12846004,167.75,167.67,3.12846004]
[1752486608981,3.17059781,167.75,167.68,3.03990543]
[1752486609178,3.17059781,167.75,167.69,3.03990543]
[1752486609477,3.17059781,167.75,167.7,3.03990543]
[1752486609671,3.17059781,167.75,167.71,3.03990543]
[1752486609871,3.17059781,167.75,167.72,9.00050543]
[1752486610077,3.17059781,167.75,167.73,3.03990543]
[1752486610281,3.17059781,167.75,167.74,3.03990543]
[1752486610984,0.04213777,167.75,167.74,3.03990543]
[1752486611185,5.9602,167.74,167.67,3.12846004]
[1752486611381,5.9602,167.74,167.68,3.03791075]
[1752486611584,3.12846004,167.75,167.7,5.9613]
[1752486611784,0.03823758,167.73,167.71,3.03791075]
[1752486611987,3.16669762,167.73,167.72,3.03791075]
[1752486612186,3.16669762,167.73,167.64,3.12846004]
[1752486612487,9.12739762,167.73,167.68,5.9622]
[1752486612685,3.12846004,167.71,167.69,3.03726793]
[1752486612885,3.16669762,167.73,167.7,3.03726793]
[1752486613088,3.16669762,167.73,167.64,3.12846004]
[1752486613282,3.12846004,167.73,167.65,3.03695658]
[1752486613482,0.04049657,167.7,167.68,5.9622]
[1752486613685,0.04049657,167.7,167.69,3.03695658]
[1752486615380,0.04049657,167.7,167.69,3.03613145]
[1752486616283,0.04049657,167.7,167.69,8.99803145]
[1752486616484,0.04049657,167.7,167.69,5.9619]
[1752486616686,0.04049657,167.7,167.69,3.03449965]
[1752486617189,0.04049657,167.7,167.69,3.03378469]
[1752486619486,0.04049657,167.7,167.67,5.9624]
[1752486619685,0.04049657,167.7,167.68,3.03250839]
[1752486619877,9.08996004,167.71,167.67,5.9624]
[1752486620080,9.13418684,167.71,167.68,3.03250839]
[1752486620276,9.13418684,167.71,167.67,5.9624]
[1752486620487,5.9617,167.7,167.68,3.03182102]
[1752486620688,3.17268684,167.71,167.62,3.12846004]
[1752486620990,3.17268684,167.71,167.6,514.92]
[1752486620991,3.17268684,167.71,167.63,3.03201317]
[1752486621190,3.12846004,167.69,167.64,3.03201317]
[1752486621390,3.12846004,167.69,167.65,3.03201317]
[1752486621681,0.04204888,167.68,167.66,3.03201317]
[1752486621885,0.04204888,167.68,167.67,3.03201317]
[1752486622288,0.04204888,167.68,167.67,3.02966718]
[1752486622488,0.04204888,167.68,167.6,3.12846004]
[1752486622678,0.04204888,167.68,167.61,3.03015497]
[1752486622883,0.04204888,167.68,167.62,3.03015497]
[1752486623088,0.04204888,167.68,167.63,3.03015497]
[1752486623286,0.04204888,167.68,167.64,3.03015497]
[1752486623493,0.04204888,167.68,167.65,3.03015497]
[1752486623686,3.12846004,167.67,167.57,11.932]
[1752486624000,3.12846004,167.68,167.6,3.12846004]
[1752486624198,3.12846004,167.68,167.61,3.03038685]
[1752486624494,3.12846004,167.68,167.6,3.12846004]
[1752486624495,0.04002126,167.64,167.62,8.99448685]
[1752486624697,0.04002126,167.64,167.63,3.03038685]
[1752486625405,0.04002126,167.64,167.62,5.9642]
[1752486625699,0.04002126,167.64,167.63,3.02954626]
[1752486625891,0.04002126,167.64,167.62,5.9642]
[1752486626098,0.04002126,167.64,167.63,3.02962436]
[1752486626301,3.1684813,167.64,167.63,3.02962436]
[1752486627190,9.1321813,167.64,167.63,3.02962436]
[1752486627395,3.1684813,167.64,167.56,3.12846004]
[1752486627602,3.1684813,167.64,167.57,3.02955425]
[1752486627903,3.1684813,167.64,167.58,3.02955425]
[1752486628201,3.1684813,167.64,167.59,3.02955425]
[1752486628406,3.1684813,167.64,167.6,8.99435425]
[1752486628600,3.1684813,167.64,167.61,3.02955425]
[1752486628795,3.1684813,167.64,167.62,3.02955425]
[1752486629100,0.04002126,167.64,167.57,3.12846004]
[1752486629293,0.04002126,167.64,167.59,3.12846004]
[1752486629497,3.12846004,167.72,167.63,3.12846004]
[1752486629803,3.12846004,167.72,167.6,3.02828487]
[1752486629804,3.12846004,167.73,167.64,3.02828487]
[1752486630100,3.12846004,167.73,167.65,3.02828487]
[1752486630306,518.32846004,167.75,167.66,6.15674491]
[1752486630604,515.2,167.75,167.67,3.02828487]
[1752486630805,515.2,167.75,167.68,6.15674491]
[1752486630998,515.2,167.75,167.69,3.02828487]
[1752486631201,515.2,167.75,167.7,3.02828487]
[1752486631503,515.2,167.75,167.71,3.02828487]
[1752486631706,515.2,167.75,167.67,3.12846004]
[1752486631904,515.2,167.75,167.68,3.02603624]
[1752486632102,515.2,167.75,167.69,6.15449628]
[1752486632306,515.2,167.75,167.73,5.9602]
[1752486632503,199.68,167.76,167.74,3.02603624]
[1752486632700,199.68,167.76,167.71,3.12846004]
[1752486632903,199.68,167.76,167.72,3.02679793]
[1752486633103,199.68,167.76,167.73,3.02679793]
[1752486633299,199.68,167.76,167.74,3.02679793]
[1752486633507,515.38,167.83,167.75,3.02778418]
[1752486633508,5.9583,167.8,167.75,3.02778418]
[1752486633808,202.68846004,167.82,167.76,3.02778418]
[1752486634006,202.68846004,167.82,167.73,3.12846004]
[1752486634205,202.68846004,167.82,167.74,3.02731507]
[1752486634402,199.56,167.82,167.75,3.02731507]
[1752486634606,199.56,167.82,167.73,3.12846004]
[1752486634607,3.12846004,167.81,167.76,8.98651507]
[1752486634906,3.12846004,167.81,167.77,3.02731507]
[1752486635107,3.12846004,167.81,167.78,3.02731507]
[1752486635311,3.12846004,167.81,167.76,5.9592]
[1752486635511,199.56,167.82,167.77,3.03119712]
[1752486635707,199.56,167.82,167.78,3.03119712]
[1752486635903,5.9579,167.81,167.79,3.03119712]
[1752486636112,199.56,167.82,167.8,3.03119712]
[1752486636309,199.56,167.82,167.68,3.12846004]
[1752486636310,199.56,167.82,167.74,3.12846004]
[1752486636511,5.9577,167.81,167.76,5.9592]
[1752486636811,5.9577,167.81,167.77,3.03037635]
[1752486637011,5.9577,167.81,167.74,3.12846004]
[1752486637012,5.9577,167.81,167.78,3.03037635]
[1752486637213,5.9577,167.81,167.79,3.03037635]
[1752486637404,3.12846004,167.81,167.8,3.03037635]
[1752486637605,3.12846004,167.81,167.71,3.12846004]
[1752486637808,3.12846004,167.81,167.73,3.12846004]
[1752486638009,9.08636004,167.81,167.76,5.9594]
[1752486638209,3.12846004,167.81,167.76,5.9594]
[1752486638411,3.12846004,167.81,167.77,0.04125748]
[1752486638615,5.958,167.8,167.77,0.04125748]
[1752486639917,5.9581,167.8,167.77,0.04125748]
[1752486640110,3.12846004,167.81,167.77,0.04125748]
[1752486640316,199.56,167.82,167.77,0.04125748]
[1752486640317,3.12846004,167.79,167.77,0.04125748]
[1752486640607,3.12846004,167.8,167.77,0.04125748]
[1752486641013,202.68846004,167.82,167.77,0.04125748]
[1752486641308,199.56,167.82,167.77,0.04125748]
[1752486641513,205.5176,167.82,167.77,0.04125748]
[1752486641714,199.56,167.82,167.77,3.16971752]
[1752486642118,5.9579,167.81,167.77,9.12881752]
[1752486642418,199.56,167.82,167.77,3.16971752]
[1752486642817,199.56,167.82,167.77,9.12861752]
[1752486642818,5.9578,167.81,167.77,9.12861752]
[1752486643017,199.56,167.82,167.77,9.12861752]
[1752486643218,199.56,167.82,167.77,3.16971752]
[1752486643421,199.56,167.82,167.77,9.12871752]
[1752486643617,199.56,167.82,167.79,3.12846004]
[1752486644120,4.98336101,167.88,167.81,3.12846004]
[1752486644312,199.12,167.87,167.84,3.12846004]
[1752486644712,199.12,167.87,167.82,3.12846004]
[1752486644910,5.956,167.86,167.82,9.08546004]
[1752486645117,199.12,167.87,167.82,3.12846004]
[1752486646119,199.12,167.87,167.84,3.12846004]
[1752486646821,199.12,167.87,167.85,5.956]
[1752486647214,199.12,167.87,167.84,5.20494752]
[1752486647418,4.98336101,167.9,167.84,5.20494752]
[1752486647618,719.08336101,167.91,167.86,5.20494752]
[1752486647924,203.94336101,167.91,167.88,5.955]
[1752486648222,198.96,167.91,167.86,5.20494752]
[1752486648521,198.96,167.91,167.88,5.20494752]
[1752486649024,198.96,167.91,167.88,11.16014752]
[1752486649417,198.96,167.91,167.88,5.20494752]
[1752486649615,198.96,167.91,167.89,3.05248835]
[1752486649919,198.96,167.91,167.9,3.05178379]
[1752486650316,204.9141,167.91,167.9,3.05178379]
[1752486651519,204.9141,167.91,167.9,3.04654681]
[1752486652623,198.96,167.91,167.9,3.04654681]
[1752486653329,198.96,167.91,167.89,0.04453611]
[1752486653530,198.96,167.91,167.9,3.04243835]
[1752486654218,198.96,167.91,167.89,0.04453611]
[1752486654424,5.9545,167.9,167.89,0.04453611]
[1752486654621,198.96,167.91,167.89,3.08541631]
[1752486654822,198.96,167.91,167.89,0.04453611]
[1752486656435,0.03916296,167.92,167.89,0.04453611]
[1752486656819,0.03916296,167.92,167.89,5.99903611]
[1752486657027,0.03916296,167.92,167.89,0.04453611]
[1752486657222,0.03916296,167.92,167.91,5.9541]
[1752486659227,0.03916296,167.92,167.89,0.04453611]
[1752486659529,0.03916296,167.92,167.9,3.03341267]
[1752486659730,0.03916296,167.92,167.91,5.9541]
[1752486660224,0.03916296,167.92,167.89,0.04453611]
[1752486660525,0.03916296,167.92,167.9,3.03325387]
[1752486660727,0.03916296,167.92,167.89,0.04453611]
[1752486661026,5.9545,167.9,167.89,0.04453611]
[1752486661225,5.9545,167.9,167.89,3.611e-05]
[1752486661736,23.8345,167.9,167.89,3.611e-05]
[1752486661926,5.20494752,167.87,167.81,5.9575]
[1752486662125,198.28,167.86,167.82,3.03659236]
[1752486662327,198.28,167.86,167.81,5.9575]
[1752486662626,198.28,167.86,167.82,3.03776511]
[1752486662826,198.28,167.86,167.81,5.9575]
[1752486663026,198.32209848,167.86,167.82,3.03776408]
[1752486663219,198.32209848,167.86,167.82,5.9572]
[1752486663626,5.9563,167.85,167.77,5.20494752]
[1752486663927,5.9563,167.85,167.81,5.9575]
[1752486664229,204.27809848,167.86,167.82,3.038311]
[1752486664421,198.32209848,167.86,167.82,5.9573]
[1752486664621,198.32209848,167.86,167.77,5.20494752]
[1752486664825,198.32209848,167.86,167.78,3.03802899]
[1752486665027,5.9563,167.85,167.79,3.03802899]
[1752486665228,0.04209848,167.86,167.81,5.20494752]
[1752486665427,0.04209848,167.86,167.82,3.03802899]
[1752486665632,5.9557,167.87,167.81,5.20494752]
[1752486665633,5.9557,167.87,167.83,3.03802899]
[1752486665935,0.04535664,167.86,167.84,3.03802899]
[1752486666128,0.04535664,167.86,167.81,5.20494752]
[1752486666327,0.04535664,167.86,167.84,5.9563]
[1752486667328,0.04535664,167.86,167.85,3.0388326]
[1752486667534,0.04535664,167.86,167.85,8.9950326]
[1752486668135,0.04535664,167.86,167.85,9.0070564]
[1752486668637,0.04535664,167.86,167.85,5.9562]
[1752486668838,0.04535664,167.86,167.85,9.0070543]
[1752486669430,0.04535664,167.86,167.85,3.0508543]
[1752486669630,0.04535664,167.86,167.77,5.20494752]
[1752486669836,0.04535664,167.86,167.78,3.05361159]
[1752486670036,5.9561,167.86,167.82,5.9571]
[1752486670337,5.9561,167.86,167.83,3.0550815]
[1752486670338,0.04118003,167.84,167.83,3.0550815]
[1752486670733,0.04118003,167.84,167.83,9.0119815]
[1752486672143,5.20494752,167.93,167.83,8.26002902]
[1752486672330,5.9547,167.9,167.84,3.0550815]
[1752486672537,5.9547,167.9,167.85,3.0550815]
[1752486672835,5.9547,167.9,167.86,3.0550815]
[1752486673140,5.9547,167.9,167.87,3.0550815]
[1752486673337,5.9547,167.9,167.88,3.0550815]
[1752486673641,5.20494752,167.91,167.86,0.04289818]
[1752486673841,197.9,167.92,167.86,0.04289818]
[1752486673842,5.20494752,167.89,167.86,0.04289818]
[1752486674135,5.20494752,167.89,167.87,3.06691016]
[1752486674136,5.9552,167.88,167.87,3.06691016]
[1752486675536,5.9555,167.87,167.86,0.04289818]
[1752486675847,11.16044752,167.87,167.86,3.11277099]
[1752486676337,11.16044752,167.87,167.86,3.07159096]
[1752486677142,11.16044752,167.87,167.86,3.07608077]
[1752486679944,5.99965613,167.88,167.86,3.07608077]
[1752486680246,5.99965613,167.88,167.87,3.07436262]
[1752486680746,0.04445613,167.88,167.87,3.07436262]
[1752486683045,5.99965613,167.88,167.87,3.07436262]
[1752486683947,0.04445613,167.88,167.87,3.07436262]
[1752486685445,0.04445613,167.88,167.87,9.02986262]
[1752486685847,0.04445613,167.88,167.87,9.03512951]
[1752486686447,0.04445613,167.88,167.87,5.9555]
[1752486686649,0.04445613,167.88,167.87,9.03678911]
[1752486692744,0.04445613,167.88,167.87,3.08128911]
[1752486693857,5.99965613,167.88,167.87,3.08128911]
[1752486694150,0.04445613,167.88,167.87,3.08128911]
[1752486694756,0.04445613,167.88,167.87,3.08401364]
[1752486695251,0.04445613,167.88,167.87,3.08405466]
[1752486697753,0.04445613,167.88,167.87,9.03955466]
[1752486699752,202.26343633,167.93,167.87,3.08405466]
[1752486699952,197.26,167.93,167.89,3.12398275]
[1752486700260,197.26,167.93,167.9,3.08405466]
[1752486700456,197.26,167.93,167.91,9.03795466]
[1752486700652,197.26,167.93,167.92,3.08405466]
[1752486701050,203.2134,167.93,167.92,3.08405466]
[1752486701357,197.26,167.93,167.92,3.08405466]
[1752486701859,197.26,167.93,167.92,9.03785466]
[1752486702058,5.00343633,167.95,167.92,9.03785466]
[1752486702258,5.00343633,167.96,167.93,3.08405466]
[1752486702458,5.9527,167.95,167.94,3.08405466]
[1752486702959,14.08011908,167.95,167.94,3.03959853]
[1752486703154,9.07668275,167.95,167.94,3.03959853]
[1752486703552,5.9546,167.9,167.84,3.12398275]
[1752486703852,3.12398275,167.91,167.82,3.12398275]
[1752486704156,5.955,167.89,167.82,3.12398275]
[1752486704459,5.955,167.89,167.79,4.97741332]
[1752486704460,3.12398275,167.91,167.86,5.9558]
[1752486704851,5.9547,167.9,167.86,5.9558]
[1752486706163,9.07828275,167.91,167.87,5.9555]
[1752486706352,196.54,167.92,167.85,3.12398275]
[1752486706955,196.54,167.92,167.89,5.9545]
[1752486707762,202.494,167.92,167.89,5.9545]
[1752486708052,196.54,167.92,167.88,5.955]
[1752486708258,5.9544,167.91,167.89,0.03790207]
[1752486708660,196.54,167.92,167.89,5.99260207]
[1752486708859,202.494,167.92,167.89,5.99260207]
[1752486709158,196.54,167.92,167.89,0.03790207]
[1752486709363,5.9545,167.9,167.89,0.03790207]
[1752486711262,10.95795787,167.9,167.89,0.03790207]
[1752486711759,9.07860179,167.9,167.89,0.03790207]
[1752486711953,5.9543,167.91,167.89,0.03790207]
[1752486712661,205.61800179,167.92,167.89,0.03790207]
[1752486712859,199.66410179,167.92,167.89,0.03790207]
[1752486713261,5.9543,167.91,167.89,0.03790207]
[1752486714856,5.9545,167.9,167.89,0.03790207]
[1752486715557,5.9545,167.9,167.89,3.03276072]
[1752486717566,9.07768609,167.9,167.89,3.03276072]
[1752486719971,5.9545,167.9,167.89,3.03276072]
[1752486720871,5.9545,167.9,167.89,3.03492378]
[1752486721466,5.9545,167.9,167.89,3.03515218]
[1752486722469,9.07738609,167.91,167.89,3.03515218]
[1752486722669,3.12318609,167.91,167.9,2.99725011]
[1752486723769,3.12318609,167.91,167.89,0.03790207]
[1752486724378,9.79443453,167.91,167.89,0.03790207]
[1752486724680,5.01102844,167.9,167.89,0.03790207]
[1752486725076,10.96552844,167.9,167.89,0.03790207]
[1752486725681,206.48552844,167.9,167.89,0.03790207]
[1752486725983,195.52,167.9,167.89,0.03790207]
[1752486727582,201.4745,167.9,167.89,0.03790207]
[1752486728184,195.52,167.9,167.89,0.03790207]
[1752486728684,195.52,167.9,167.89,5.99280207]
[1752486728884,201.4745,167.9,167.89,0.03790207]
[1752486729088,195.52,167.9,167.89,0.03790207]
[1752486730383,195.52,167.9,167.89,5.99280207]
[1752486731285,0.04392685,167.91,167.89,5.99280207]
[1752486731678,0.04392685,167.91,167.9,5.9545]
[1752486734478,5.01102844,167.97,167.9,3.12318609]
[1752486734675,5.9522,167.97,167.92,3.12318609]
[1752486734882,5.01102844,167.98,167.92,3.12318609]
[1752486735082,5.9523,167.97,167.94,5.9529]
[1752486735489,5.9523,167.97,167.92,3.12318609]
[1752486735688,715.15102844,167.99,167.94,0.04508254]
[1752486735991,710.14,167.99,167.95,2.90859231]
[1752486736187,5.952,167.97,167.96,2.90859231]
[1752486736490,710.14,167.99,167.96,2.90735072]
[1752486736685,710.14,167.99,167.97,2.90735072]
[1752486736885,716.0913,167.99,167.98,2.90735072]
[1752486737282,719.21448609,167.99,167.98,5.072e-05]
[1752486737489,5.9524,167.96,167.95,0.03760305]
[1752486738393,5.9536,167.93,167.9,5.9543]
[1752486738585,5.00613683,167.96,167.88,3.12318609]
[1752486738785,3.12318609,167.97,167.88,3.12318609]
[1752486738786,5.9532,167.94,167.91,5.954]
[1752486739086,8.12932292,167.97,167.88,3.12318609]
[1752486739489,8.12932292,167.97,167.9,5.9543]
[1752486739689,8.12932292,167.97,167.91,0.03808222]
[1752486740488,8.12932292,167.97,167.91,5.99198222]
[1752486740986,5.9533,167.94,167.91,5.99198222]
[1752486741183,8.12932292,167.97,167.91,0.03808222]
[1752486741988,5.9538,167.92,167.91,0.03808222]
[1752486743094,5.9538,167.92,167.91,8.222e-05]
[1752486743296,204.5388511,167.93,167.78,4.99093215]
[1752486743488,3.12318609,167.89,167.81,3.12318609]
[1752486743683,197.74318609,167.89,167.83,5.9569]
[1752486743883,5.9559,167.87,167.83,5.9569]
[1752486744096,197.74318609,167.89,167.84,5.9564]
[1752486744289,5.9555,167.88,167.84,5.9564]
[1752486744588,0.0415106,167.88,167.84,5.9564]
[1752486744894,5.9558,167.87,167.82,3.12318609]
[1752486745095,0.0415106,167.88,167.86,3.12318609]
[1752486745292,194.56,167.95,167.86,3.12318609]
[1752486745495,194.56,167.95,167.89,3.12318609]
[1752486745698,194.56,167.95,167.9,5.9543]
[1752486745999,5.9537,167.93,167.9,5.9543]
[1752486746488,5.9537,167.93,167.9,5.99798684]
[1752486746895,5.9532,167.94,167.91,5.9541]
[1752486747199,194.46,167.95,167.91,3.12318609]
[1752486747596,200.4129,167.95,167.92,5.9535]
[1752486748093,194.46,167.95,167.91,3.12318609]
[1752486748291,194.46,167.95,167.93,5.9531]
[1752486748698,194.46,167.95,167.94,5.9531]
[1752486749298,194.36,167.97,167.95,5.9527]
[1752486749690,5.9519,167.98,167.95,5.9527]
[1752486749896,515.06,167.99,167.95,3.12318609]
[1752486750098,194.32,167.98,167.95,3.12318609]
[1752486750306,5.9519,167.98,167.95,5.9525]
[1752486750600,709.38,167.99,167.94,0.04218081]
[1752486750801,5.9527,167.95,167.94,0.04218081]
[1752486753601,200.1127,167.95,167.94,0.04218081]
[1752486755203,194.16,167.95,167.94,0.04218081]
[1752486755803,200.1127,167.95,167.94,0.04218081]
[1752486757009,194.16,167.95,167.94,0.04218081]
[1752486758911,200.1127,167.95,167.94,0.04218081]
[1752486759804,199.7927,167.95,167.94,0.04218081]
[1752486767610,193.84,167.95,167.94,0.04218081]
[1752486768210,199.7927,167.95,167.94,0.04218081]
[1752486768716,5.9527,167.95,167.94,0.04218081]
[1752486769711,199.49032612,167.96,167.94,0.04218081]
[1752486770422,193.53772612,167.96,167.94,5.99518081]
[1752486770918,199.49022612,167.96,167.94,0.04218081]
[1752486771615,199.49022612,167.96,167.94,5.99528081]
[1752486772012,199.49022612,167.96,167.94,0.04218081]
[1752486773520,199.49022612,167.96,167.94,5.99518081]
[1752486774721,5.9527,167.95,167.94,0.04218081]
[1752486774915,193.12,167.95,167.94,0.04218081]
[1752486776321,199.0727,167.95,167.94,0.04218081]
[1752486776924,193.12,167.95,167.94,0.04218081]
[1752486777217,0.03772612,167.96,167.94,0.04218081]
[1752486777415,193.05772612,167.96,167.94,0.04218081]
[1752486777615,199.01012612,167.96,167.94,5.99508081]
[1752486778411,193.05772612,167.96,167.94,0.04218081]
[1752486778618,0.03772612,167.96,167.94,0.04218081]
[1752486778816,0.03772612,167.96,167.95,5.9527]
[1752486782027,5.99012612,167.96,167.94,5.99508081]
[1752486782221,0.03772612,167.96,167.94,0.04218081]
[1752486782526,5.9527,167.95,167.94,0.04218081]
[1752486784430,0.03772612,167.96,167.94,0.04218081]
[1752486785532,0.03772612,167.96,167.94,5.99518081]
[1752486786236,5.99022612,167.96,167.94,0.04218081]
[1752486787033,0.03772612,167.96,167.94,0.04218081]
[1752486787730,5.99032612,167.96,167.94,0.04218081]
[1752486788627,0.03772612,167.96,167.94,0.04218081]
[1752486788835,5.9527,167.95,167.94,0.04218081]
[1752486789436,5.9533,167.94,167.91,5.9541]
[1752486789632,0.03772612,167.96,167.88,8.11411824]
[1752486789833,5.04198926,167.96,167.88,8.11411824]
[1752486790029,5.9533,167.94,167.88,8.11411824]
[1752486790233,5.04198926,167.96,167.88,8.11411824]
[1752486790433,5.00426314,167.96,167.88,8.11411824]
[1752486790736,5.99668508,167.94,167.88,8.11411824]
[1752486791438,5.9535,167.93,167.9,5.9542]
[1752486792044,0.04328508,167.94,167.89,3.12318609]
[1752486792239,3.12318609,167.93,167.86,4.99093215]
[1752486792436,5.04754822,167.94,167.85,4.99093215]
[1752486792637,3.12318609,167.92,167.86,4.99093215]
[1752486792942,197.28426314,167.91,167.83,3.12318609]
[1752486793132,192.28,167.91,167.83,8.11411824]
[1752486793333,5.9551,167.89,167.83,3.12318609]
[1752486793538,5.99705551,167.89,167.83,3.12318609]